[Event "*** Titled Tuesday Blitz"]
[Site "Chess.com"]
[Date "2019.01.01"]
[Round "3"]
[White "Keaton87"]
[Black "JoakimVonAnd"]
[Result "1-0"]
[WhiteElo "2512"]
[BlackElo "2352"]
[TimeControl "180+2"]
[EndTime "13:38:29 PST"]
[Termination "Keaton87 won by resignation"]

1. Nf3 {[%clk 0:03:01.9]} 1... d5 {[%clk 0:03:00.5]} 2. e3 {[%clk 0:03:02.8]}
2... Nf6 {[%clk 0:03:01.5]} 3. c4 {[%clk 0:03:03.4]} 3... c6 {[%clk 0:03:00.2]}
4. Nc3 {[%clk 0:03:04.1]} 4... Bf5 {[%clk 0:02:52.8]} 5. Qb3 {[%clk 0:03:03.9]}
5... Qb6 {[%clk 0:02:52.2]} 6. cxd5 {[%clk 0:03:02.7]} 6... Qxb3 {[%clk
0:02:49.9]} 7. axb3 {[%clk 0:03:03.6]} 7... cxd5 {[%clk 0:02:50.7]} 8. Nb5
{[%clk 0:03:00.5]} 8... Kd8 {[%clk 0:02:49.4]} 9. Rxa7 {[%clk 0:02:57.4]} 9...
Rxa7 {[%clk 0:02:48.8]} 10. Nxa7 {[%clk 0:02:58.7]} 10... Nbd7 {[%clk
0:02:43.5]} 11. d4 {[%clk 0:02:54]} 11... e6 {[%clk 0:02:39.9]} 12. Bd2 {[%clk
0:02:54.6]} 12... Bc2 {[%clk 0:02:32.6]} 13. b4 {[%clk 0:02:40.8]} 13... Ne4
{[%clk 0:02:31.3]} 14. Bc3 {[%clk 0:02:41.9]} 14... Nb6 {[%clk 0:02:29.4]} 15.
Nd2 {[%clk 0:02:37.2]} 15... Kd7 {[%clk 0:02:01.1]} 16. Bb5+ {[%clk 0:02:33.8]}
16... Kc7 {[%clk 0:02:00.5]} 17. Be2 {[%clk 0:02:30.3]} 17... Bd6 {[%clk
0:01:55.8]} 18. f3 {[%clk 0:02:29.2]} 18... Nf6 {[%clk 0:01:55.1]} 19. Nb5+
{[%clk 0:02:29.1]} 19... Kd7 {[%clk 0:01:54.9]} 20. Nxd6 {[%clk 0:02:28.2]}
20... Kxd6 {[%clk 0:01:56.8]} 21. Kf2 {[%clk 0:02:24.1]} 21... Ra8 {[%clk
0:01:56]} 22. Rc1 {[%clk 0:02:24.6]} 22... Bg6 {[%clk 0:01:56.4]} 23. Nb3 {[%clk
0:02:25]} 23... Ra2 {[%clk 0:01:49.1]} 24. Ra1 {[%clk 0:02:23.4]} 24... Rxa1
{[%clk 0:01:46.2]} 25. Nxa1 {[%clk 0:02:25.3]} 25... Na4 {[%clk 0:01:41.7]} 26.
Nb3 {[%clk 0:02:22.7]} 26... b6 {[%clk 0:01:30.7]} 27. Bb5 {[%clk 0:02:17.8]}
27... Nxc3 {[%clk 0:01:31.4]} 28. bxc3 {[%clk 0:02:18.8]} 28... Bc2 {[%clk
0:01:28.2]} 29. Nd2 {[%clk 0:02:19.8]} 29... h6 {[%clk 0:01:27.5]} 30. g4 {[%clk
0:02:20.1]} 30... Bg6 {[%clk 0:01:26.7]} 31. h4 {[%clk 0:02:19.6]} 31... e5
{[%clk 0:01:23.4]} 32. Ke2 {[%clk 0:02:14.8]} 32... e4 {[%clk 0:01:21.7]} 33. g5
{[%clk 0:02:04.5]} 33... hxg5 {[%clk 0:01:20.8]} 34. hxg5 {[%clk 0:02:05.1]}
34... exf3+ {[%clk 0:01:22.1]} 35. Kxf3 {[%clk 0:02:01]} 35... Nh7 {[%clk
0:01:12.6]} 36. Kf4 {[%clk 0:02:02]} 36... Nf8 {[%clk 0:01:11.5]} 37. Nf3 {[%clk
0:01:50.3]} 37... Ne6+ {[%clk 0:01:00.1]} 38. Kg4 {[%clk 0:01:50.9]} 38... f5+
{[%clk 0:01:00.7]} 39. gxf6 {[%clk 0:01:40]} 39... gxf6 {[%clk 0:01:02]} 40. Nh4
{[%clk 0:01:37]} 40... Be4 {[%clk 0:00:58.9]} 41. Be2 {[%clk 0:01:32.6]} 41...
Nc7 {[%clk 0:00:49.8]} 42. Nf5+ {[%clk 0:01:26.3]} 42... Ke6 {[%clk 0:00:47.2]}
43. Ng3 {[%clk 0:01:24.2]} 43... f5+ {[%clk 0:00:42.7]} 44. Kg5 {[%clk
0:01:23.5]} 44... Ne8 {[%clk 0:00:40.1]} 45. Nh5 {[%clk 0:01:23.3]} 45... Nd6
{[%clk 0:00:39.4]} 46. Bf1 {[%clk 0:01:20.6]} 46... Kf7 {[%clk 0:00:37.3]} 47.
Ba6 {[%clk 0:01:10.4]} 47... Ke6 {[%clk 0:00:36.4]} 48. Be2 {[%clk 0:01:01.1]}
48... Ke7 {[%clk 0:00:37.1]} 49. Kh6 {[%clk 0:00:51.2]} 49... Kf7 {[%clk
0:00:36.3]} 50. Ng7 {[%clk 0:00:44.8]} 50... Kf6 {[%clk 0:00:36.9]} 51. Nh5+
{[%clk 0:00:43]} 51... Kf7 {[%clk 0:00:37.7]} 52. Kg5 {[%clk 0:00:44]} 52... Ke6
{[%clk 0:00:39]} 53. Bf1 {[%clk 0:00:41]} 53... Kf7 {[%clk 0:00:39.4]} 54. Bh3
{[%clk 0:00:39.5]} 54... Nb5 {[%clk 0:00:33.8]} 55. Bxf5 {[%clk 0:00:38.2]}
55... Nxc3 {[%clk 0:00:23]} 56. Ng3 {[%clk 0:00:33.4]} 56... Bf3 {[%clk
0:00:18]} 57. Kf4 {[%clk 0:00:29.3]} 57... Bg2 {[%clk 0:00:16.2]} 58. Ke5 {[%clk
0:00:30.2]} 58... Ke7 {[%clk 0:00:17.6]} 59. Be6 {[%clk 0:00:30.1]} 59... Na2
{[%clk 0:00:17.7]} 60. Nf5+ {[%clk 0:00:30.3]} 60... Kd8 {[%clk 0:00:18.4]} 61.
Bxd5 {[%clk 0:00:26.8]} 61... Bxd5 {[%clk 0:00:19.5]} 62. Kxd5 {[%clk
0:00:28.6]} 62... Nxb4+ {[%clk 0:00:20.8]} 63. Kd6 {[%clk 0:00:29.8]} 63... Ke8
{[%clk 0:00:21.2]} 64. e4 {[%clk 0:00:30.6]} 64... Nd3 {[%clk 0:00:22.5]} 65. e5
{[%clk 0:00:30]} 65... b5 {[%clk 0:00:23.2]} 66. e6 {[%clk 0:00:28.4]} 66... Nf4
{[%clk 0:00:22.6]} 67. Ng7+ {[%clk 0:00:28.3]} 67... Kf8 {[%clk 0:00:23.1]} 68.
e7+ {[%clk 0:00:29.7]} 68... Kxg7 {[%clk 0:00:24.7]} 69. e8=Q {[%clk 0:00:30.5]}
1-0

[Event "*** Titled Tuesday Blitz"]
[Site "Chess.com"]
[Date "2019.01.01"]
[Round "3"]
[White "Bad4life"]
[Black "Sordis"]
[Result "0-1"]
[WhiteElo "2329"]
[BlackElo "2409"]
[TimeControl "180+2"]
[EndTime "13:38:30 PST"]
[Termination "Sordis won by resignation"]

1. e4 {[%clk 0:03:01.9]} 1... c5 {[%clk 0:03:00.9]} 2. Nf3 {[%clk 0:03:02.6]}
2... d6 {[%clk 0:03:02.1]} 3. d4 {[%clk 0:03:03.3]} 3... cxd4 {[%clk 0:03:04]}
4. Nxd4 {[%clk 0:03:05.2]} 4... Nf6 {[%clk 0:03:05.4]} 5. Nc3 {[%clk 0:03:06.2]}
5... g6 {[%clk 0:03:06.9]} 6. Be3 {[%clk 0:03:06]} 6... Bg7 {[%clk 0:03:08.2]}
7. Be2 {[%clk 0:03:07.5]} 7... O-O {[%clk 0:03:09.5]} 8. Qd2 {[%clk 0:03:08.8]}
8... Ng4 {[%clk 0:03:09.6]} 9. Bxg4 {[%clk 0:03:09.4]} 9... Bxg4 {[%clk
0:03:11.5]} 10. f3 {[%clk 0:03:11]} 10... Be6 {[%clk 0:03:11.2]} 11. h4 {[%clk
0:03:10]} 11... Nc6 {[%clk 0:03:11.6]} 12. h5 {[%clk 0:03:09.6]} 12... Qa5
{[%clk 0:02:37]} 13. Nb3 {[%clk 0:03:06.7]} 13... Qc7 {[%clk 0:01:58.9]} 14. Bh6
{[%clk 0:03:05.6]} 14... Bxh6 {[%clk 0:01:42.6]} 15. Qxh6 {[%clk 0:03:05.8]}
15... g5 {[%clk 0:01:44.2]} 16. O-O-O {[%clk 0:03:01.8]} 16... f6 {[%clk
0:01:43]} 17. f4 {[%clk 0:02:57.6]} 17... Nd8 {[%clk 0:01:40.7]} 18. Nd4 {[%clk
0:02:50.2]} 18... Qc8 {[%clk 0:01:28.8]} 19. Nd5 {[%clk 0:02:42.1]} 19... Bxd5
{[%clk 0:01:27.4]} 20. Nf5 {[%clk 0:02:40]} 20... Qxf5 {[%clk 0:00:35.2]} 21.
exf5 {[%clk 0:02:39.7]} 21... Bc6 {[%clk 0:00:36]} 22. fxg5 {[%clk 0:02:01.4]}
22... Nf7 {[%clk 0:00:36.9]} 23. Qxf8+ {[%clk 0:02:02.3]} 23... Kxf8 {[%clk
0:00:38.8]} 24. g6 {[%clk 0:02:03.2]} 24... Nh6 {[%clk 0:00:35.3]} 25. Rh3
{[%clk 0:01:24.1]} 25... Nxf5 {[%clk 0:00:21.6]} 26. g4 {[%clk 0:01:23]} 26...
Nh6 {[%clk 0:00:21.9]} 27. g5 {[%clk 0:01:20.8]} 27... fxg5 {[%clk 0:00:21.7]}
28. Rf1+ {[%clk 0:01:06.6]} 28... Kg7 {[%clk 0:00:22.9]} 29. Re3 {[%clk
0:01:08]} 29... e5 {[%clk 0:00:23.9]} 30. Rd1 {[%clk 0:01:06.7]} 30... hxg6
{[%clk 0:00:21.4]} 31. hxg6 {[%clk 0:01:04.8]} 31... Rd8 {[%clk 0:00:21.2]} 32.
Rxe5 {[%clk 0:01:05.9]} 32... dxe5 {[%clk 0:00:22.7]} 33. Rxd8 {[%clk
0:01:07.8]} 33... Kxg6 {[%clk 0:00:24.4]} 34. b4 {[%clk 0:01:05.8]} 34... a6
{[%clk 0:00:25.1]} 35. c4 {[%clk 0:01:06.3]} 35... g4 {[%clk 0:00:26.6]} 36. Kd2
{[%clk 0:01:04.1]} 36... g3 {[%clk 0:00:27.9]} 37. Ke2 {[%clk 0:01:05.5]} 37...
g2 {[%clk 0:00:29.1]} 38. Kf2 {[%clk 0:01:07.2]} 38... Ng4+ {[%clk 0:00:28.9]}
39. Kg1 {[%clk 0:01:08.7]} 39... Ne3 {[%clk 0:00:24.2]} 40. b5 {[%clk
0:00:39.6]} 40... axb5 {[%clk 0:00:25.3]} 41. cxb5 {[%clk 0:00:40.2]} 41... Bxb5
{[%clk 0:00:23.3]} 42. Kf2 {[%clk 0:00:36.6]} 42... Nf5 {[%clk 0:00:19.1]} 43.
Kxg2 {[%clk 0:00:33.7]} 43... Nd4 {[%clk 0:00:19.6]} 44. Kf2 {[%clk 0:00:31.7]}
44... Kf5 {[%clk 0:00:21]} 45. Ke3 {[%clk 0:00:31.5]} 45... Ke6 {[%clk
0:00:21.8]} 46. Rb8 {[%clk 0:00:28.3]} 46... Bc6 {[%clk 0:00:22.1]} 47. a4
{[%clk 0:00:24.9]} 47... Kd5 {[%clk 0:00:21.3]} 48. a5 {[%clk 0:00:21.2]} 48...
Nb3 {[%clk 0:00:19.4]} 49. Ra8 {[%clk 0:00:17.1]} 49... Nc5 {[%clk 0:00:18.6]}
50. Rd8+ {[%clk 0:00:16.4]} 50... Kc4 {[%clk 0:00:19.5]} 51. Re8 {[%clk
0:00:17.9]} 51... e4 {[%clk 0:00:20.6]} 52. Re5 {[%clk 0:00:17]} 52... Na6
{[%clk 0:00:20.2]} 53. Rh5 {[%clk 0:00:16.8]} 53... Kb4 {[%clk 0:00:21.5]} 54.
Kd4 {[%clk 0:00:17.4]} 54... Nc7 {[%clk 0:00:21.8]} 55. Rh7 {[%clk 0:00:15.9]}
55... Nb5+ {[%clk 0:00:23]} 56. Ke3 {[%clk 0:00:11.6]} 56... Kxa5 {[%clk
0:00:24.3]} 57. Rh1 {[%clk 0:00:10.3]} 57... Kb6 {[%clk 0:00:25.1]} 58. Rb1
{[%clk 0:00:10.8]} 58... Kc5 {[%clk 0:00:26.3]} 59. Rc1+ {[%clk 0:00:12.3]}
59... Kd5 {[%clk 0:00:27.5]} 60. Rd1+ {[%clk 0:00:13.8]} 60... Ke5 {[%clk
0:00:29]} 61. Rh1 {[%clk 0:00:15]} 61... Nd6 {[%clk 0:00:29.5]} 62. Rh5+ {[%clk
0:00:16.4]} 62... Nf5+ {[%clk 0:00:30.9]} 63. Ke2 {[%clk 0:00:17.1]} 63... Kf4
{[%clk 0:00:32.4]} 64. Ke1 {[%clk 0:00:17.9]} 64... e3 {[%clk 0:00:33]} 65. Rh1
{[%clk 0:00:15.7]} 65... Bxh1 {[%clk 0:00:33.3]} 0-1

[Event "*** Titled Tuesday Blitz"]
[Site "Chess.com"]
[Date "2019.01.01"]
[Round "3"]
[White "Vegan4future"]
[Black "Martins-BR"]
[Result "1-0"]
[WhiteElo "2338"]
[BlackElo "2213"]
[TimeControl "180+2"]
[EndTime "13:38:36 PST"]
[Termination "Vegan4future won by resignation"]

1. d4 {[%clk 0:03:00.9]} 1... f5 {[%clk 0:02:59.7]} 2. c4 {[%clk 0:02:59.3]}
2... Nf6 {[%clk 0:03:00.4]} 3. Nc3 {[%clk 0:02:57.7]} 3... d6 {[%clk 0:03:01.2]}
4. g3 {[%clk 0:02:58.4]} 4... g6 {[%clk 0:03:01.6]} 5. Bg2 {[%clk 0:02:59.7]}
5... Bg7 {[%clk 0:03:02.5]} 6. Nh3 {[%clk 0:03:01.2]} 6... O-O {[%clk 0:03:03]}
7. O-O {[%clk 0:03:02.4]} 7... Nc6 {[%clk 0:03:03.6]} 8. d5 {[%clk 0:03:00.7]}
8... Ne5 {[%clk 0:03:03.9]} 9. b3 {[%clk 0:03:02.1]} 9... c5 {[%clk 0:03:04.7]}
10. dxc6 {[%clk 0:02:57.8]} 10... bxc6 {[%clk 0:03:02.1]} 11. Bb2 {[%clk
0:02:59]} 11... Rb8 {[%clk 0:02:56]} 12. Qc2 {[%clk 0:02:57.2]} 12... Bd7 {[%clk
0:02:50.1]} 13. Rad1 {[%clk 0:02:57.9]} 13... Qa5 {[%clk 0:02:41.2]} 14. Ba1
{[%clk 0:02:54.2]} 14... h6 {[%clk 0:02:27.5]} 15. Nf4 {[%clk 0:02:40.6]} 15...
g5 {[%clk 0:02:24.8]} 16. Nd3 {[%clk 0:02:41.4]} 16... Nf7 {[%clk 0:02:15.8]}
17. c5 {[%clk 0:02:39.3]} 17... d5 {[%clk 0:02:14.6]} 18. Na4 {[%clk 0:02:30.5]}
18... Ne4 {[%clk 0:01:50.3]} 19. Bxg7 {[%clk 0:02:28.1]} 19... Kxg7 {[%clk
0:01:50.1]} 20. f3 {[%clk 0:02:27.3]} 20... Nf6 {[%clk 0:01:46]} 21. f4 {[%clk
0:02:11.6]} 21... Qc7 {[%clk 0:01:36]} 22. Qc3 {[%clk 0:02:08.3]} 22... Kg8
{[%clk 0:01:33.7]} 23. Nab2 {[%clk 0:02:03.5]} 23... Ng4 {[%clk 0:01:17.6]} 24.
Qd4 {[%clk 0:01:55]} 24... e5 {[%clk 0:01:14.2]} 25. fxe5 {[%clk 0:01:54.3]}
25... Ngxe5 {[%clk 0:01:13.3]} 26. Nxe5 {[%clk 0:01:56.2]} 26... Qxe5 {[%clk
0:01:11.6]} 27. e3 {[%clk 0:01:46.8]} 27... Rfe8 {[%clk 0:01:10.2]} 28. Rde1
{[%clk 0:01:44.9]} 28... Qxd4 {[%clk 0:00:56.1]} 29. exd4 {[%clk 0:01:46.8]}
29... Rb4 {[%clk 0:00:55.1]} 30. Rxe8+ {[%clk 0:01:47.4]} 30... Bxe8 {[%clk
0:00:55.3]} 31. Rd1 {[%clk 0:01:49]} 31... Nd8 {[%clk 0:00:50.4]} 32. Bh3 {[%clk
0:01:35.3]} 32... Bg6 {[%clk 0:00:49.8]} 33. Rd3 {[%clk 0:01:15.9]} 33... Ne6
{[%clk 0:00:42.6]} 34. a3 {[%clk 0:01:16.7]} 34... Rxd4 {[%clk 0:00:41.2]} 35.
Rxd4 {[%clk 0:01:16.6]} 35... Nxd4 {[%clk 0:00:41.7]} 36. b4 {[%clk 0:01:18.5]}
36... Nc2 {[%clk 0:00:40.1]} 37. Nd3 {[%clk 0:01:18.1]} 37... Nxa3 {[%clk
0:00:37.4]} 38. Ne5 {[%clk 0:01:19]} 38... Be8 {[%clk 0:00:37.4]} 39. Bxf5
{[%clk 0:01:19.2]} 39... Nb5 {[%clk 0:00:30.3]} 40. Kf2 {[%clk 0:01:19]} 40...
Nd4 {[%clk 0:00:23.7]} 41. Bd3 {[%clk 0:01:19.3]} 41... Kg7 {[%clk 0:00:20.5]}
42. Ke3 {[%clk 0:01:20.4]} 42... Ne6 {[%clk 0:00:20]} 43. Bf5 {[%clk 0:01:19.7]}
43... Kf6 {[%clk 0:00:20.4]} 44. Bxe6 {[%clk 0:01:19.8]} 44... Kxe6 {[%clk
0:00:18.5]} 45. Kd4 {[%clk 0:01:20.4]} 45... a6 {[%clk 0:00:18.9]} 46. Ng4
{[%clk 0:01:19.9]} 46... h5 {[%clk 0:00:18.9]} 47. Ne5 {[%clk 0:01:21.2]} 47...
h4 {[%clk 0:00:19]} 48. Nf3 {[%clk 0:01:20.5]} 48... hxg3 {[%clk 0:00:17.6]} 49.
hxg3 {[%clk 0:01:22]} 49... Kf5 {[%clk 0:00:18.5]} 50. Ne5 {[%clk 0:01:23]}
50... g4 {[%clk 0:00:14.8]} 51. Nd3 {[%clk 0:01:23]} 51... Kf6 {[%clk
0:00:14.9]} 52. Nf4 {[%clk 0:01:23.9]} 52... Kf5 {[%clk 0:00:15.8]} 53. Ng2
{[%clk 0:01:25]} 53... Kf6 {[%clk 0:00:15.9]} 54. Ne3 {[%clk 0:01:26.2]} 54...
Bd7 {[%clk 0:00:15]} 55. Nc2 {[%clk 0:01:23]} 55... Bf5 {[%clk 0:00:14.6]} 56.
Na1 {[%clk 0:01:22.9]} 56... Be6 {[%clk 0:00:15.2]} 57. Nb3 {[%clk 0:01:24.2]}
57... Bd7 {[%clk 0:00:15.9]} 58. Na5 {[%clk 0:01:25.2]} 58... Kf5 {[%clk
0:00:16]} 59. Nb7 {[%clk 0:01:26.2]} 59... Kf6 {[%clk 0:00:16.3]} 60. Nd6 {[%clk
0:01:26.8]} 60... Be6 {[%clk 0:00:15.9]} 61. Ne8+ {[%clk 0:01:27.2]} 61... Kf5
{[%clk 0:00:16.1]} 62. Nc7 {[%clk 0:01:28.4]} 62... Bd7 {[%clk 0:00:16.3]} 63.
Nxa6 {[%clk 0:01:28.8]} 63... Ke6 {[%clk 0:00:16.3]} 64. Nb8 {[%clk 0:01:27.7]}
64... Be8 {[%clk 0:00:16.9]} 65. Na6 {[%clk 0:01:28.7]} 65... Kd7 {[%clk
0:00:17]} 66. Ke5 {[%clk 0:01:28.9]} 66... Kc8 {[%clk 0:00:16.5]} 67. b5 {[%clk
0:01:29.4]} 67... cxb5 {[%clk 0:00:16.7]} 68. Nb4 {[%clk 0:01:31.3]} 68... Bf7
{[%clk 0:00:15.5]} 69. Kd6 {[%clk 0:01:30.8]} 69... d4 {[%clk 0:00:13.9]} 70.
Ke5 {[%clk 0:01:31.7]} 70... Kc7 {[%clk 0:00:11.6]} 71. Kxd4 {[%clk 0:01:32.5]}
71... Bc4 {[%clk 0:00:12.6]} 72. Ke5 {[%clk 0:01:33.3]} 72... Kd7 {[%clk
0:00:13.3]} 73. Kf4 {[%clk 0:01:33.9]} 73... Be2 {[%clk 0:00:14.4]} 74. Ke4
{[%clk 0:01:35]} 74... Bc4 {[%clk 0:00:14.7]} 75. Kd4 {[%clk 0:01:36]} 75... Be2
{[%clk 0:00:15.4]} 76. Kc3 {[%clk 0:01:37.1]} 76... Bc4 {[%clk 0:00:15.9]} 77.
Nc2 {[%clk 0:01:38.4]} 77... Kc6 {[%clk 0:00:15.7]} 78. Kb4 {[%clk 0:01:39.6]}
78... Kd5 {[%clk 0:00:16.5]} 79. Ne3+ {[%clk 0:01:40.6]} 79... Ke4 {[%clk
0:00:17.6]} 80. Nxg4 {[%clk 0:01:42.5]} 80... Kf3 {[%clk 0:00:18.3]} 81. Ne5+
{[%clk 0:01:43.6]} 81... Kxg3 {[%clk 0:00:18.5]} 82. Nxc4 {[%clk 0:01:45.5]}
82... bxc4 {[%clk 0:00:19.1]} 83. c6 {[%clk 0:01:46.8]} 1-0

[Event "*** Titled Tuesday Blitz"]
[Site "Chess.com"]
[Date "2019.01.01"]
[Round "3"]
[White "HonzaVykouk"]
[Black "DanielNaroditsky"]
[Result "1/2-1/2"]
[WhiteElo "2642"]
[BlackElo "2922"]
[TimeControl "180+2"]
[EndTime "13:38:43 PST"]
[Termination "Game drawn by agreement"]

1. e4 {[%clk 0:02:58.9]} 1... g6 {[%clk 0:03:00.3]} 2. d4 {[%clk 0:02:59.7]}
2... Bg7 {[%clk 0:03:02.2]} 3. Nc3 {[%clk 0:03:01.2]} 3... d6 {[%clk 0:03:03.2]}
4. Be3 {[%clk 0:03:02.8]} 4... Nf6 {[%clk 0:03:03.5]} 5. Qd2 {[%clk 0:03:03.7]}
5... c6 {[%clk 0:03:04.4]} 6. f3 {[%clk 0:03:04.8]} 6... Qa5 {[%clk 0:03:00.3]}
7. O-O-O {[%clk 0:03:04.7]} 7... Nbd7 {[%clk 0:02:57.8]} 8. h4 {[%clk
0:03:03.9]} 8... b5 {[%clk 0:02:54.9]} 9. Kb1 {[%clk 0:03:04.5]} 9... b4 {[%clk
0:02:49.3]} 10. Nce2 {[%clk 0:03:05]} 10... c5 {[%clk 0:02:39.3]} 11. h5 {[%clk
0:02:52.1]} 11... Nxh5 {[%clk 0:02:35.7]} 12. g4 {[%clk 0:02:50.1]} 12... Nhf6
{[%clk 0:02:36.3]} 13. Ng3 {[%clk 0:02:33.7]} 13... Nb6 {[%clk 0:02:22.9]} 14.
g5 {[%clk 0:02:32.7]} 14... Nfd7 {[%clk 0:02:22.8]} 15. dxc5 {[%clk 0:02:19.2]}
15... Na4 {[%clk 0:02:07.9]} 16. Bd4 {[%clk 0:02:19.3]} 16... Nc3+ {[%clk
0:01:22.2]} 17. bxc3 {[%clk 0:01:15.7]} 17... bxc3 {[%clk 0:01:24.1]} 18. Qc1
{[%clk 0:01:16.5]} 18... Qb4+ {[%clk 0:01:16.5]} 19. Ka1 {[%clk 0:01:17.5]}
19... Bxd4 {[%clk 0:01:18.1]} 20. cxd6 {[%clk 0:01:15.2]} 20... Nc5 {[%clk
0:00:57.1]} 21. Qb1 {[%clk 0:01:09.3]} 21... Qb2+ {[%clk 0:00:38.9]} 22. Qxb2
{[%clk 0:01:09.9]} 22... cxb2+ {[%clk 0:00:40.8]} 23. Kb1 {[%clk 0:01:11.5]}
23... Be5 {[%clk 0:00:42.7]} 24. Bb5+ {[%clk 0:01:10.5]} 24... Kf8 {[%clk
0:00:43.6]} 25. dxe7+ {[%clk 0:01:08.7]} 25... Kxe7 {[%clk 0:00:45.5]} 26. N1e2
{[%clk 0:01:09.2]} 26... Rb8 {[%clk 0:00:46.4]} 27. Bc4 {[%clk 0:01:05.1]} 27...
Be6 {[%clk 0:00:40.7]} 28. Bxe6 {[%clk 0:01:05.5]} 28... Nxe6 {[%clk 0:00:42.6]}
29. Rd5 {[%clk 0:01:02.3]} 29... Bc7 {[%clk 0:00:42.3]} 30. Rhd1 {[%clk
0:01:02.6]} 30... Rhd8 {[%clk 0:00:41.7]} 31. Rxd8 {[%clk 0:01:03.4]} 31... Rxd8
{[%clk 0:00:39.9]} 32. Rxd8 {[%clk 0:01:03.6]} 32... Kxd8 {[%clk 0:00:41.8]} 33.
Kxb2 {[%clk 0:01:04.9]} 33... Nxg5 {[%clk 0:00:43.3]} 34. f4 {[%clk 0:01:04.3]}
34... Ne6 {[%clk 0:00:44]} 35. f5 {[%clk 0:01:03.9]} 35... Ng5 {[%clk
0:00:44.7]} 36. fxg6 {[%clk 0:01:04]} 36... fxg6 {[%clk 0:00:45.5]} 37. Kc3
{[%clk 0:01:04.9]} 37... h5 {[%clk 0:00:45.1]} 38. Kd3 {[%clk 0:01:04.1]} 38...
h4 {[%clk 0:00:45.1]} 39. Nf1 {[%clk 0:01:05.2]} 39... Ke7 {[%clk 0:00:47]} 40.
Ke3 {[%clk 0:01:05.5]} 40... Ne6 {[%clk 0:00:43.5]} 41. Kf3 {[%clk 0:01:03.3]}
41... h3 {[%clk 0:00:36.8]} 42. c4 {[%clk 0:01:01.9]} 42... Kf6 {[%clk
0:00:32.7]} 43. Neg3 {[%clk 0:00:58]} 43... g5 {[%clk 0:00:20.9]} 44. Kg4 {[%clk
0:00:57.9]} 44... Bxg3 {[%clk 0:00:18.5]} 45. Kxg3 {[%clk 0:00:52.6]} 45... Ke5
{[%clk 0:00:20]} 46. Nd2 {[%clk 0:00:48.6]} 46... Kd4 {[%clk 0:00:16.7]} 47.
Kxh3 {[%clk 0:00:46.8]} 47... Ke3 {[%clk 0:00:18.1]} 48. Nb3 {[%clk 0:00:46]}
48... Kf3 {[%clk 0:00:13.8]} 49. Nd2+ {[%clk 0:00:46.2]} 49... Ke3 {[%clk
0:00:14]} 50. Nb3 {[%clk 0:00:47]} 50... Kxe4 {[%clk 0:00:11.9]} 51. Kg4 {[%clk
0:00:48]} 51... Ke5 {[%clk 0:00:11.3]} 52. Na5 {[%clk 0:00:38.8]} 52... a6
{[%clk 0:00:11.7]} 53. Nc6+ {[%clk 0:00:30.7]} 53... Kd6 {[%clk 0:00:11]} 54.
Na5 {[%clk 0:00:29.4]} 54... Kc5 {[%clk 0:00:11.7]} 55. Kf5 {[%clk 0:00:30.2]}
55... Nd4+ {[%clk 0:00:09.1]} 56. Kxg5 {[%clk 0:00:31]} 56... Kb4 {[%clk
0:00:10.2]} 57. Nb7 {[%clk 0:00:27.9]} 57... Kxc4 {[%clk 0:00:11.7]} 58. Kf4
{[%clk 0:00:28.2]} 58... Ne2+ {[%clk 0:00:10.1]} 59. Ke3 {[%clk 0:00:28.6]}
59... Nc3 {[%clk 0:00:12]} 60. a3 {[%clk 0:00:28.3]} 60... Nb1 {[%clk
0:00:07.3]} 61. a4 {[%clk 0:00:29]} 61... Kb4 {[%clk 0:00:09]} 62. a5 {[%clk
0:00:29.6]} 62... Na3 {[%clk 0:00:10.9]} 63. Kd3 {[%clk 0:00:29.1]} 63... Nc4
{[%clk 0:00:12.3]} 64. Kc2 {[%clk 0:00:28.6]} 64... Kb5 {[%clk 0:00:12.7]} 65.
Kb3 {[%clk 0:00:26.5]} 65... Nd2+ {[%clk 0:00:14.1]} 66. Kc3 {[%clk 0:00:27.1]}
66... Ne4+ {[%clk 0:00:16]} 67. Kd4 {[%clk 0:00:28.1]} 67... Nc5 {[%clk
0:00:14.8]} 1/2-1/2